fUSD/lending_fUSD_20251006
["ID","MTS","AMOUNT","RATE_DAILY","PERIOD"]
[389661038,1759774239952,-500.0,0.00029801,2]
[389661039,1759774239962,-500.0,0.00029801,2]
[389661040,1759774239971,-508.0,0.00029801,2]
[389661041,1759774239980,-158.436539,0.00029805,7]
[389661042,1759774239989,-152.955031,0.00029805,7]
[389661043,1759774239998,-216.668001,0.00029805,7]
[389661044,1759774240007,-35931.0031337,0.00029808,3]
[389661045,1759774240016,-188.69420333,0.00029811,2]
[389661046,1759774240025,-20553.9472435,0.00029811,2]
[389661047,1759774240035,-158.436539,0.00029815,3]
[389661048,1759774240044,-152.955031,0.00029815,3]
[389661049,1759774240053,-216.668001,0.00029815,3]
[389661050,1759774240063,-35931.0031337,0.00029818,3]
[389661051,1759774240072,-25256.3182683,0.00029818,2]
[389661052,1759774240081,-170.1197017,0.00029818,2]
[389661053,1759774240090,-5415.029532,0.00029818,2]
[389661054,1759774240101,-1069.62916495,0.0002982,2]
[389661055,1759774240116,-300.0,0.0002982,43]
[389661056,1759774240125,-215.08852706,0.0002982,2]
[389661057,1759774240134,-251517.021936,0.0002982,3]
[389661058,1759774240143,-1015.4730576,0.0002982,3]
[389661059,1759774240152,-151.0,0.00029821,2]
[389661060,1759774240161,-151.0,0.00029821,2]
[389661061,1759774240170,-151.0,0.00029821,30]
[389661062,1759774240180,-151.0,0.00029821,30]
[389661063,1759774240188,-151.0,0.00029821,30]
[389661064,1759774240197,-151.0,0.00029821,30]
[389661065,1759774240207,-151.0,0.00029821,30]
[389661066,1759774240215,-159.555357,0.00029821,30]
[389661067,1759774240225,-167.407203,0.00029821,30]
[389661068,1759774240244,-151.0,0.00029821,14]
[389661069,1759774240255,-151.0,0.00029821,30]
[389661070,1759774240264,-151.0,0.00029821,30]
[389661071,1759774240274,-151.0,0.00029821,30]
[389661072,1759774240283,-151.418636,0.00029821,30]
[389661073,1759774240293,-151.0,0.00029821,30]
[389661074,1759774240302,-151.0,0.00029821,30]
[389661075,1759774240311,-151.0,0.00029821,30]
[389661076,1759774240321,-151.0,0.00029821,30]
[389661077,1759774240330,-153.350346,0.00029821,30]
[389661078,1759774240339,-1622.50154,0.00029821,2]
[389661079,1759774240348,-188.69420333,0.00029821,2]
[389661080,1759774240358,-1000.0,0.00029827,7]
[389661081,1759774240367,-1000.0,0.00029827,5]
[389661082,1759774240376,-150.0,0.00029828,2]
[389661083,1759774240385,-150.0,0.00029828,2]
[389661084,1759774240394,-150.0,0.00029828,2]
[389661085,1759774240403,-1997.25545426,0.00029828,2]
[389661086,1759774240412,-9354.89965441,0.00029828,2]
[389661087,1759774240421,-158.436539,0.00029828,30]
[389661088,1759774240431,-158.436539,0.00029828,30]
[389661089,1759774240440,-158.436539,0.00029828,30]
[389661090,1759774240450,-158.436539,0.00029828,30]
[389661091,1759774240460,-158.436539,0.00029828,30]
[389661092,1759774240469,-158.436539,0.00029828,45]
[389661093,1759774240478,-152.955032,0.00029828,30]
[389661094,1759774240490,-152.955031,0.00029828,30]
[389661096,1759774240499,-152.955031,0.00029828,30]
[389661098,1759774240508,-152.955031,0.00029828,30]
[389661099,1759774240686,-216.668001,0.00029828,30]
[389661100,1759774240696,-216.668001,0.00029828,30]
[389661101,1759774240705,-216.668001,0.00029828,30]
[389661102,1759774240714,-216.668001,0.00029828,30]
[389661103,1759774240723,-216.668001,0.00029828,30]
[389661104,1759774240733,-216.668001,0.00029828,45]
[389661105,1759774240742,-143724.012535,0.0002983,3]
[389661106,1759774240752,-158.436539,0.00029835,7]
[389661107,1759774240761,-152.955031,0.00029835,7]
[389661108,1759774240770,-216.668001,0.00029835,7]
[389661109,1759774240780,-150.0,0.00029836,7]
[389661110,1759774240789,-150.0,0.00029836,7]
[389661111,1759774240800,-150.0,0.00029836,7]
[389661112,1759774240811,-150.00000001,0.00029836,7]
[389661113,1759774240820,-151.0,0.0002984,30]
[389661114,1759774240830,-151.0,0.0002984,30]
[389661115,1759774240839,-151.0,0.0002984,30]
[389661116,1759774240849,-151.0,0.0002984,30]
[389661117,1759774240858,-151.0,0.0002984,30]
[389661118,1759774240867,-151.0,0.0002984,30]
[389661119,1759774240876,-170.234452,0.0002984,30]
[389661120,1759774240885,-151.0,0.0002984,30]
[389661121,1759774240894,-151.0,0.0002984,30]
[389661122,1759774240903,-151.0,0.0002984,30]
[389661123,1759774240914,-183.210176,0.0002984,30]
[389661124,1759774240923,-151.0,0.0002984,30]
[389661125,1759774240932,-151.0,0.0002984,15]
[389661126,1759774240941,-185.726584,0.0002984,30]
[389661127,1759774240950,-151.0,0.0002984,30]
[389661128,1759774240959,-151.0,0.0002984,30]
[389661129,1759774240968,-151.0,0.0002984,30]
[389661130,1759774240978,-151.0,0.0002984,30]
[389661131,1759774240987,-151.0,0.0002984,30]
[389661132,1759774240996,-249.944412,0.0002984,30]
[389661133,1759774241006,-151.0,0.0002984,30]
[389661134,1759774241015,-151.0,0.0002984,30]
[389661135,1759774241024,-317.175139,0.0002984,30]
[389661136,1759774241033,-151.0,0.0002984,30]
[389661137,1759774241043,-317.175139,0.0002984,30]
[389661138,1759774241053,-151.0,0.0002984,30]
[389661139,1759774241064,-151.0,0.0002984,30]
[389661140,1759774241074,-317.175139,0.0002984,30]
[389661141,1759774241083,-317.175139,0.0002984,30]
[389661142,1759774241092,-151.0,0.0002984,30]
[389661143,1759774241100,-151.0,0.0002984,30]
[389661144,1759774241110,-151.0,0.0002984,30]
[389661145,1759774241119,-151.0,0.0002984,30]
[389661147,1759774241127,-151.0,0.0002984,30]
[389661149,1759774241136,-151.0,0.0002984,30]
[389661151,1759774241145,-151.0,0.0002984,30]
[389661153,1759774241153,-151.0,0.0002984,30]
[389661155,1759774241168,-177.660179,0.0002984,30]
[389661156,1759774241185,-151.0,0.0002984,30]
[389661158,1759774241194,-177.660179,0.0002984,30]
[389661160,1759774241202,-177.660179,0.0002984,30]
[389661162,1759774241211,-177.660179,0.0002984,30]
[389661165,1759774241221,-253.124465,0.0002984,30]
[389661167,1759774241231,-151.0,0.0002984,30]
[389661168,1759774241245,-151.0,0.0002984,30]
[389661170,1759774241255,-151.0,0.0002984,30]
[389661172,1759774241263,-151.0,0.0002984,30]
[389661174,1759774241272,-151.0,0.0002984,30]
[389661176,1759774241282,-151.0,0.0002984,30]
[389661178,1759774241291,-151.0,0.0002984,30]
[389661180,1759774241300,-151.0,0.0002984,30]
[389661182,1759774241309,-151.0,0.0002984,30]
[389661183,1759774241318,-151.0,0.0002984,30]
[389661185,1759774241328,-151.0,0.0002984,30]
[389661187,1759774241337,-151.0,0.0002984,30]
[389661189,1759774241346,-151.0,0.0002984,30]
[389661191,1759774241355,-195.838651,0.0002984,30]
[389661193,1759774241364,-151.0,0.0002984,30]
[389661195,1759774241373,-151.0,0.0002984,30]
[389661197,1759774241382,-151.0,0.0002984,30]
[389661199,1759774241391,-151.0,0.0002984,2]
[389661201,1759774241401,-151.0,0.0002984,2]
[389661203,1759774241409,-151.0,0.0002984,2]
[389661205,1759774241418,-151.0,0.0002984,2]
[389661207,1759774241427,-151.0,0.0002984,30]
[389661209,1759774241436,-151.0,0.0002984,30]
[389661212,1759774241447,-151.0,0.0002984,30]
[389661214,1759774241456,-151.0,0.0002984,30]
[389661216,1759774241465,-151.0,0.0002984,30]
[389661218,1759774241473,-151.0,0.0002984,30]
[389661220,1759774241483,-151.0,0.0002984,30]
[389661222,1759774241492,-683.657097,0.0002984,30]
[389661224,1759774241501,-151.0,0.0002984,30]
[389661226,1759774241510,-683.657097,0.0002984,30]
[389661228,1759774241519,-151.0,0.0002984,30]
[389661230,1759774241528,-683.657097,0.0002984,30]
[389661232,1759774241537,-151.0,0.0002984,30]
[389661234,1759774241546,-151.0,0.0002984,30]
[389661236,1759774241555,-683.657097,0.0002984,30]
[389661238,1759774241565,-1588866.48312232,0.0002984,7]
[389661241,1759774241584,-500.0,0.00021704,2]
[389661243,1759774241593,-805.90493124,0.0002984,7]
[389661245,1759774241603,-2578.3350066,0.0002984,7]
[389661248,1759774241619,-500.0,0.00021704,2]
[389661250,1759774241628,-786.73195426,0.0002984,7]
[389661252,1759774241642,-237.20372659,0.00021704,2]
[389661254,1759774241651,-102.62723151,0.0002984,7]
[389661256,1759774241662,-4537.4,0.0002984,7]
[389661261,1759774241700,-3086.80210793,0.0002984,7]
[389661264,1759774241712,-11319.0,0.0002984,7]
[389661267,1759774241737,-3483.29536372,0.0002984,7]
[389661346,1759774243036,-1000.0,0.00027,11]
[389661347,1759774243046,-596.20244332,0.0002984,7]
[389661348,1759774243195,-27666.46573159,0.0002984,7]
[389661423,1759774246021,-13390.54152087,0.0002984,7]
[389661424,1759774246032,-6283.61332352,0.0002984,7]
[389661425,1759774246043,-159693.44208556,0.0002984,7]
[389661426,1759774246053,-151.0,0.0002984,15]
[389661427,1759774246063,-155.959656,0.0002984,30]
[389661428,1759774246072,-151.0,0.0002984,15]
[389661429,1759774246082,-155.959656,0.0002984,30]
[389661430,1759774246091,-155.959656,0.0002984,30]
[389661431,1759774246100,-155.959656,0.0002984,30]
[389661432,1759774246109,-151.0,0.0002984,30]
[389661433,1759774246118,-151.0,0.0002984,30]
[389661434,1759774246127,-151.0,0.0002984,30]
[389661435,1759774246136,-151.0,0.0002984,30]
[389661436,1759774246146,-151.0,0.0002984,30]
[389661437,1759774246155,-180.661024,0.0002984,30]
[389661438,1759774246164,-151.0,0.0002984,30]
[389661439,1759774246173,-3277.28052736,0.00029841,2]
[389661440,1759774246183,-679776.64022279,0.00029841,30]
[389661441,1759774246192,-18985.64147921,0.00029841,30]
[389661445,1759774246310,-1422.86816618,0.00029841,30]
[389661446,1759774246322,-2202.13238093,0.00029841,30]
[389661447,1759774246338,-1820.89735835,0.00029841,30]
[389661448,1759774246347,-8545.43076906,0.00029841,30]
[389661449,1759774246356,-1000.22795339,0.00029841,30]
[389661450,1759774246367,-869.43771164,0.00029841,30]
[389661517,1759775175539,-318.40730899,0.00015,2]
[389661518,1759775175568,-829445.63028624,0.00015,2]
[389661519,1759775206071,-378.46518389,0.000154,2]
[389661524,1759775320015,319.33718055,0.0001,2]
[389661530,1759775346857,-300.0,0.00014998,2]
[389661531,1759775346880,-503.80823206,0.00014999,2]
[389661532,1759775346902,-378.18488288,0.00014999,2]
[389661533,1759775346929,-500.0,0.00014999,2]
[389661534,1759775346959,-500.0,0.00014999,2]
[389661535,1759775346986,-500.0,0.00014999,2]
[389661536,1759775347014,-500.0,0.00014999,2]
[389661537,1759775347041,-500.0,0.00014999,2]
[389661538,1759775347069,-273.34843719,0.00014999,2]
[389661539,1759775347091,-237209.22753752,0.00015,2]
[389661540,1759775347114,-19661.42473063,0.00015,2]
[389661548,1759775432147,-316.52362598,0.00015,2]
[389661549,1759775432159,-330.55581015,0.00015,2]
[389661550,1759775432200,-3308.262116,0.00015,2]
[389661551,1759775432210,-1200.0,0.00015399,2]
[389661552,1759775432219,-4620.07364308,0.000154,2]
[389661553,1759775432229,-165.66982386,0.0001585,2]
[389661554,1759775432238,-248.0,0.00015949,2]
[389661555,1759775432248,-300.0,0.00015949,2]
[389661556,1759775432258,-2000.0,0.0001595,2]
[389661558,1759775432506,-352.86,0.000165,2]
[389661559,1759775432517,-373.08437915,0.000165,2]
[389661560,1759775432527,-162.337231,0.000165,2]
[389661562,1759775432536,-863.0,0.00016932,2]
[389661564,1759775432548,-2000.0,0.0001694,2]
[389661566,1759775432559,-2131.16382482,0.0001838,2]
[389661568,1759775432568,-495.7,0.00019164,2]
[389661570,1759775432577,-161.67240371,0.000199,2]
[389661572,1759775432587,-1410.3984173,0.000199,2]
[389661574,1759775432596,-8006.97634505,0.000199,2]
[389661577,1759775432607,-354.15152649,0.000199,2]
[389661581,1759775432616,-1732.18622177,0.0001999,2]
[389661584,1759775432628,-606.44505723,0.00019999,2]
[389661585,1759775432637,-500.0,0.00019999,2]
[389661587,1759775432647,-639.38285126,0.00019999,2]
[389661589,1759775432656,-500.0,0.00019999,2]
[389661591,1759775432665,-500.0,0.00019999,2]
[389661593,1759775432674,-500.0,0.00019999,2]
[389661597,1759775432684,-631.9427619,0.00019999,2]
[389661599,1759775432693,-308.14982635,0.00019999,2]
[389661601,1759775432702,-10885.99282528,0.0002,2]
[389661603,1759775432866,-2370.94001,0.0002,2]
[389661604,1759775432877,-2975.88167343,0.0002,2]
[389661605,1759775432888,-91759.59083238,0.0002,2]
[389661606,1759775432898,-10720.98231509,0.0002,2]
[389661607,1759775432909,-6786.61234382,0.0002,2]
[389661608,1759775432918,-8664.78617207,0.0002,2]
[389661609,1759775432929,-37174.14309953,0.0002,2]
[389661610,1759775432951,-8536.73305784,0.0002,2]
[389661611,1759775432962,-18075.02326426,0.0002,2]
[389661612,1759775432974,-701.62574342,0.0002,2]
[389661613,1759775432985,-5969.18766582,0.0002,2]
[389661614,1759775438045,-21996.14599582,0.0002,2]
[389661615,1759775438055,-706.79984538,0.0002,30]
[389661616,1759775438100,-871.13872837,0.0002,30]
[389661617,1759775438111,-4698.40519163,0.0002,2]
[389661618,1759775438155,-8695.32390305,0.0002,2]
[389661619,1759775438211,-11861.45937903,0.0002,2]
[389661620,1759775438221,-150.0,0.0002,2]
[389661621,1759775438231,-4637.60835756,0.0002,2]
[389661622,1759775438241,-320121.75045867,0.0002,5]
[389661623,1759775438250,-8300.0,0.0002,4]
[389661624,1759775438260,-3950.0,0.0002,2]
[389661625,1759775438270,-24427.4564855,0.0002,20]
[389661626,1759775438280,-7108.54455459,0.0002,14]
[389661627,1759775438294,-1277.41452918,0.0002,2]
[389661628,1759775438304,-7277.3855316,0.0002,2]
[389661629,1759775438313,-2110.27771779,0.0002,3]
[389661631,1759775438323,-490.02166723,0.0002,10]
[389661633,1759775438333,-520.61769461,0.0002,7]
[389661634,1759775438342,-3705.09626752,0.0002,5]
[389661636,1759775438352,-1000.0,0.0002,90]
[389661638,1759775438364,-1031.22798686,0.0002,2]
[389661640,1759775438373,-164188.64984659,0.0002,7]
[389661642,1759775438383,-8176.0,0.0002,2]
[389661644,1759775438393,-90834.97979044,0.0002,2]
[389661645,1759775438403,-170.93625,0.0002,2]
[389661646,1759775438412,-3599.99999905,0.0002,3]
[389661647,1759775438423,-5059.72377883,0.0002001,2]
[389661648,1759775438433,-150.0,0.00020029,2]
[389661649,1759775438443,-495.7,0.00020122,2]
[389661650,1759775438452,-151.14,0.00020151,2]
[389661651,1759775438462,-5000.0,0.00020187,2]
[389661652,1759775438472,-25000.0,0.0002028,2]
[389661653,1759775438481,-1410.39841729,0.0002029,2]
[389661654,1759775438491,-37383.4158055,0.000203,2]
[389661655,1759775438501,-2252.76,0.00020417,2]
[389661656,1759775438511,-4852.2,0.00020428,2]
[389661657,1759775438520,-150.78,0.0002049,2]
[389661658,1759775438534,-1851.33,0.00020524,2]
[389661659,1759775438544,-16479.08289599,0.00020555,2]
[389661660,1759775438557,-189.9,0.00020563,2]
[389661661,1759775438567,-2370.09,0.00020606,2]
[389661662,1759775438577,-1000.0,0.00020654,2]
[389661663,1759775438586,-151.0,0.00020658,2]
[389661664,1759775438597,-526.27,0.00020659,2]
[389661665,1759775438607,-526.85,0.00020665,2]
[389661666,1759775438616,-528.31,0.00020667,2]
[389661667,1759775438627,-517.21,0.00020669,2]
[389661668,1759775438638,-522.34,0.00020672,2]
[389661669,1759775438647,-524.98,0.00020673,2]
[389661670,1759775438657,-531.14,0.00020675,2]
[389661671,1759775438666,-1000.0,0.00020676,2]
[389661672,1759775438675,-1410.39841729,0.0002068,2]
[389661673,1759775438685,-229.01163615,0.00020682,2]
[389661674,1759775438694,-526.45,0.00020683,2]
[389661675,1759775438704,-2500.05,0.00020689,2]
[389661676,1759775438714,-531.23,0.0002069,2]
[389661677,1759775438724,-535.03,0.00020694,2]
[389661678,1759775438734,-528.96,0.00020698,2]
[389661679,1759775438744,-22353.3329788,0.000207,2]
[389661680,1759775438753,-5000.0,0.00020705,2]
[389661681,1759775438765,-527.0,0.00020706,2]
[389661682,1759775438775,-326.45,0.00020725,2]
[389661683,1759775438784,-5000.0,0.00020726,2]
[389661684,1759775438794,-150.0,0.00020734,2]
[389661685,1759775438803,-522.04,0.00020741,2]
[389661686,1759775438813,-1000.0,0.0002076,2]
[389661687,1759775438823,-525.56,0.00020761,2]
[389661688,1759775438832,-526.49,0.00020766,2]
[389661689,1759775438842,-529.49,0.00020774,2]
[389661690,1759775438851,-532.4,0.00020777,2]
[389661691,1759775438861,-522.37,0.0002078,2]
[389661692,1759775438871,-1312.23,0.0002078,2]
[389661693,1759775438881,-1000.0,0.0002078,2]
[389661694,1759775438891,-1332.93,0.0002078,2]
[389661695,1759775438901,-1318.85,0.0002078,2]
[389661696,1759775438911,-1329.1,0.0002078,2]
[389661697,1759775438920,-1306.81,0.0002078,2]
[389661698,1759775438930,-1286.83,0.00020781,2]
[389661699,1759775438939,-1307.31,0.00020781,2]
[389661700,1759775438949,-524.79,0.00020781,2]
[389661701,1759775438959,-1291.2,0.00020781,2]
[389661702,1759775438968,-1325.12,0.00020781,2]
[389661703,1759775438978,-1323.29,0.00020781,2]
[389661704,1759775438990,-1295.33,0.00020782,2]
[389661705,1759775439000,-535.08,0.00020782,2]
[389661706,1759775439010,-1300.88,0.00020782,2]
[389661707,1759775439019,-1292.63,0.00020782,2]
[389661708,1759775439029,-1319.08,0.00020782,2]
[389661709,1759775439038,-1329.91,0.00020782,2]
[389661710,1759775439047,-522.89,0.00020782,2]
[389661711,1759775439057,-1291.81,0.00020782,2]
[389661712,1759775439066,-1333.62,0.00020782,2]
[389661713,1759775439076,-1281.95,0.00020782,2]
[389661714,1759775439086,-1300.74,0.00020782,2]
[389661715,1759775439095,-532.63,0.00020782,2]
[389661716,1759775439105,-1282.63,0.00020782,2]
[389661717,1759775439115,-1310.75,0.00020782,2]
[389661718,1759775439125,-1288.83,0.00020782,2]
[389661719,1759775439135,-1332.42,0.00020782,2]
[389661720,1759775439145,-519.88,0.00020782,2]
[389661721,1759775439154,-1288.27,0.00020782,2]
[389661722,1759775439164,-1319.29,0.00020782,2]
[389661723,1759775439174,-1282.92,0.00020782,2]
[389661724,1759775439184,-528.4,0.00020782,2]
[389661725,1759775439194,-523.09,0.00020782,2]
[389661726,1759775439204,-1290.18,0.00020782,2]
[389661727,1759775439215,-1000.0,0.00020782,2]
[389661728,1759775439225,-1000.0,0.00020782,2]
[389661729,1759775439235,-1000.0,0.00020782,2]
[389661730,1759775439245,-1000.0,0.00020782,2]
[389661731,1759775439256,-1018.0,0.00020782,2]
[389661732,1759775439266,-569.8,0.00020782,2]
[389661733,1759775439276,-152.31,0.0002079,2]
[389661734,1759775439286,-150.5,0.0002084,2]
[389661735,1759775439296,-182.13540537,0.0002084,2]
[389661736,1759775439306,-77538.52544502,0.0002085,2]
[389661737,1759775439316,-150.0,0.00020885,2]
[389661738,1759775439325,-150.5,0.0002089,2]
[389661739,1759775439334,-2500.05,0.00020896,2]
[389661740,1759775439343,-706.84347885,0.000209,3]
[389661741,1759775439354,-105891.33887353,0.000209,30]
[389661742,1759775439364,-150.5,0.00020963,2]
[389661743,1759775439374,-544.84923843,0.00020973,2]
[389661744,1759775439383,-500.0,0.00020973,2]
[389661745,1759775439392,-150.5,0.0002099,2]
[389661746,1759775439400,-150.5,0.0002099,2]
[389661747,1759775439410,-150.5,0.0002099,2]
[389661748,1759775439419,-150.5,0.0002099,2]
[389661749,1759775439429,-150.5,0.0002099,2]
[389661750,1759775439438,-150.5,0.0002099,2]
[389661751,1759775439447,-8006.97634497,0.00020994,2]
[389661752,1759775439456,-334.94,0.00020995,2]
[389661753,1759775439465,-20000.0,0.00021,2]
[389661754,1759775439474,-569.999997,0.00021,2]
[389661755,1759775439483,-366490.28147932,0.00021,2]
[389661756,1759775439493,-150.0,0.00021051,2]
[389661757,1759775439502,-569.8,0.00021056,2]
[389661758,1759775439511,-495.7,0.0002108,2]
[389661759,1759775439520,-500.0,0.00021086,2]
[389661760,1759775439530,-179.7695246,0.00021206,2]
[389661761,1759775439539,-354.15152644,0.00021306,2]
[389661762,1759775439548,-569.8,0.0002133,2]
[389661763,1759775439558,-150.0,0.00021352,4]
[389661764,1759775439569,-370.68887098,0.00021362,2]
[389661765,1759775439579,-1000.0,0.00021521,2]
[389661766,1759775439599,-569.8,0.00021604,2]
[389661767,1759775439612,-1000.0,0.00021634,2]
[389661768,1759775439622,-520.27,0.00021689,2]
[389661769,1759775439632,-1318.96,0.00021691,2]
[389661770,1759775439642,-1296.39,0.00021691,2]
[389661771,1759775439651,-1000.0,0.00021703,2]
[389661772,1759775439660,-515.22,0.00021704,2]
[389661773,1759775439670,-518.02,0.00021704,2]
[389661774,1759775439679,-527.95,0.00021704,2]
[389661775,1759775439689,-1289.43,0.00021757,2]
[389661776,1759775439698,-1585.0,0.00021773,2]
[389661777,1759775439708,-1307.0,0.00021773,2]
[389661778,1759775439717,-570.0,0.00021773,2]
[389661779,1759775439726,-603.0,0.00021773,2]
[389661780,1759775439736,-815.0,0.00021773,2]
[389661781,1759775439745,-4116.0,0.00021773,2]
[389661782,1759775439755,-3400.0,0.00021773,2]
[389661783,1759775439763,-1265.0,0.00021773,2]
[389661784,1759775439772,-788.0,0.00021773,2]
[389661785,1759775439782,-569.84,0.00021878,2]
[389661786,1759775439790,-495.7,0.00022038,2]
[389661787,1759775439800,-8006.97634497,0.00022088,2]
[389661788,1759775439808,-1006.22946674,0.00022182,2]
[389661789,1759775439818,-229.01163612,0.00022193,2]
[389661790,1759775439827,-791.6,0.000222,2]
[389661791,1759775439837,-1473.33,0.000222,7]
[389661792,1759775439847,-3077.0,0.00022366,2]
[389661793,1759775439856,-150.0,0.0002242,2]
[389661794,1759775439866,-2500.0,0.00022626,2]
[389661795,1759775439875,-282.82621111,0.00022626,2]
[389661796,1759775439884,-354.15152644,0.00022713,2]
[389661797,1759775439893,-214.26194718,0.00022762,2]
[389661798,1759775439903,-250.0,0.00022867,2]
[389661799,1759775439912,-495.7,0.00022996,2]
[389661800,1759775439922,-666.0,0.00023073,3]
[389661801,1759775439933,-200.0,0.00023138,2]
[389661802,1759775439942,-161.67240369,0.00023182,2]
[389661804,1759775439951,-8006.97634497,0.00023182,2]
[389661806,1759775439961,-229.01163612,0.00023703,2]
[389661808,1759775439970,-354.15152644,0.00024119,2]
[389661810,1759775439979,-150.5,0.00024266,2]
[389661812,1759775439988,-8006.97634497,0.00024276,2]
[389661814,1759775439998,-1755.86,0.00024473,7]
[389661817,1759775440008,-150.5,0.0002479,2]
[389661820,1759775440017,-150.5,0.0002479,2]
[389661822,1759775440026,-150.5,0.0002479,2]
[389661824,1759775440035,-150.5,0.0002479,2]
[389661826,1759775440045,-150.5,0.0002479,2]
[389661828,1759775440054,-150.5,0.0002479,2]
[389661830,1759775440065,-150.5,0.0002479,2]
[389661832,1759775440074,-150.5,0.0002479,2]
[389661834,1759775440083,-503034.043871,0.000248,3]
[389661836,1759775440093,-151.0,0.000248,7]
[389661838,1759775440102,-151.0,0.000248,7]
[389661840,1759775440113,-151.0,0.000248,7]
[389661842,1759775440122,-155.501078,0.000248,7]
[389661844,1759775440132,-344.864089,0.000248,7]
[389661846,1759775440142,-155.501078,0.000248,7]
[389661848,1759775440151,-344.864089,0.000248,7]
[389661850,1759775440161,-155.501078,0.000248,7]
[389661852,1759775440170,-344.864089,0.000248,7]
[389661854,1759775440179,-155.501078,0.000248,7]
[389661856,1759775440189,-344.864089,0.000248,7]
[389661859,1759775440199,-151.0,0.000248,7]
[389661860,1759775440208,-151.0,0.000248,7]
[389661863,1759775440218,-151.0,0.000248,7]
[389661865,1759775440227,-151.0,0.000248,7]
[389661867,1759775440238,-167.156048,0.000248,7]
[389661869,1759775440248,-162.201995,0.000248,7]
[389661870,1759775440258,-151.0,0.000248,7]
[389661871,1759775440267,-151.0,0.000248,7]
[389661872,1759775440278,-162.201995,0.000248,7]
[389661873,1759775440287,-151.0,0.000248,7]
[389661874,1759775440297,-162.201995,0.000248,7]
[389661875,1759775440306,-162.201995,0.000248,7]
[389661876,1759775440315,-178.914548,0.000248,7]
[389661877,1759775440324,-151.0,0.000248,7]
[389661878,1759775440333,-151.0,0.000248,7]
[389661879,1759775440351,-178.914548,0.000248,7]
[389661880,1759775440362,-151.0,0.000248,7]
[389661881,1759775440372,-151.0,0.000248,7]
[389661882,1759775440381,-178.914548,0.000248,7]
[389661883,1759775440390,-178.914548,0.000248,7]
[389661884,1759775440399,-151.0,0.000248,7]
[389661885,1759775440409,-151.0,0.000248,7]
[389661886,1759775440418,-151.0,0.000248,7]
[389661887,1759775440428,-151.0,0.000248,7]
[389661888,1759775440437,-151.0,0.000248,7]
[389661889,1759775440447,-151.0,0.000248,7]
[389661890,1759775440456,-151.0,0.000248,7]
[389661891,1759775440466,-151.0,0.000248,7]
[389661892,1759775440475,-151.0,0.000248,7]
[389661893,1759775440485,-151.0,0.000248,7]
[389661894,1759775440494,-151.0,0.000248,7]
[389661895,1759775440504,-151.0,0.000248,2]
[389661896,1759775440513,-151.0,0.000248,7]
[389661897,1759775440522,-151.0,0.000248,2]
[389661898,1759775440531,-151.0,0.000248,7]
[389661899,1759775440541,-151.0,0.000248,7]
[389661900,1759775440553,-151.0,0.000248,2]
[389661901,1759775440563,-180.977161,0.000248,7]
[389661902,1759775440573,-151.0,0.000248,2]
[389661903,1759775440582,-151.0,0.000248,7]
[389661904,1759775440591,-151.0,0.000248,7]
[389661905,1759775440601,-151.0,0.000248,7]
[389661906,1759775440611,-151.0,0.000248,7]
[389661907,1759775440620,-151.0,0.000248,7]